[Event "Titled Tuesday Blitz November 07 Early 2023"]
[White "arenal72"]
[Black "amanmuhammethommadov"]
[WhiteElo "2517"]
[BlackElo "2668"]
[Result "0-1"]
[Round "6"]
[TimeControl "180+1"]
[Date "2023.11.07"]
[WhiteClock "0:00:04"]
[BlackClock "0:01:22"]
[Board "85"]

1. Nf3 {[%clk 0:03:00]}  Nf6 {[%clk 0:03:00]} 2. g3 {[%clk 0:03:00]}  g6 {[%clk 0:03:00]} 3. Bg2 {[%clk 0:03:00]}  Bg7 {[%clk 0:03:01]} 4. O-O {[%clk 0:03:00]}  O-O {[%clk 0:03:02]} 5. d4 {[%clk 0:02:56]}  d6 {[%clk 0:03:02]} 6. c4 {[%clk 0:02:55]}  c6 {[%clk 0:03:02]} 7. Nc3 {[%clk 0:02:54]}  Bf5 {[%clk 0:03:02]} 8. b4 {[%clk 0:02:46]}  Ne4 {[%clk 0:03:01]} 9. Bb2 {[%clk 0:02:42]}  d5 {[%clk 0:03:02]} 10. cxd5 {[%clk 0:02:31]}  cxd5 {[%clk 0:03:03]} 11. e3 {[%clk 0:02:30]}  Nc6 {[%clk 0:03:03]} 12. a3 {[%clk 0:02:27]}  Rc8 {[%clk 0:03:03]} 13. Nxe4 {[%clk 0:02:25]}  Bxe4 {[%clk 0:03:03]} 14. Nd2 {[%clk 0:02:25]}  Bxg2 {[%clk 0:03:03]} 15. Kxg2 {[%clk 0:02:26]}  Qd7 {[%clk 0:03:04]} 16. Nb3 {[%clk 0:02:21]}  b6 {[%clk 0:03:04]} 17. Qd3 {[%clk 0:02:20]}  e6 {[%clk 0:03:04]} 18. Rac1 {[%clk 0:02:19]}  Ne7 {[%clk 0:03:04]} 19. b5 {[%clk 0:02:15]}  Nf5 {[%clk 0:03:04]} 20. a4 {[%clk 0:02:14]}  Nd6 {[%clk 0:03:04]} 21. Ba3 {[%clk 0:02:14]}  Rfd8 {[%clk 0:02:58]} 22. Nd2 {[%clk 0:02:03]}  Bf8 {[%clk 0:02:55]} 23. Bxd6 {[%clk 0:02:00]}  Qxd6 {[%clk 0:02:53]} 24. Qb3 {[%clk 0:01:59]}  Qa3 {[%clk 0:02:48]} 25. Rxc8 {[%clk 0:01:55]}  Rxc8 {[%clk 0:02:48]} 26. Qxa3 {[%clk 0:01:56]}  Bxa3 {[%clk 0:02:49]} 27. Ra1 {[%clk 0:01:56]}  Bb4 {[%clk 0:02:45]} 28. Nf3 {[%clk 0:01:54]}  f6 {[%clk 0:02:41]} 29. g4 {[%clk 0:01:48]}  g5 {[%clk 0:02:40]} 30. h3 {[%clk 0:01:41]}  Kf7 {[%clk 0:02:39]} 31. Kf1 {[%clk 0:01:30]}  Rc2 {[%clk 0:02:38]} 32. Ne1 {[%clk 0:01:30]}  Rd2 {[%clk 0:02:35]} 33. Nf3 {[%clk 0:01:28]}  Rb2 {[%clk 0:02:23]} 34. Ne1 {[%clk 0:01:23]}  Bxe1 {[%clk 0:02:19]} 35. Kxe1 {[%clk 0:01:22]}  Kg6 {[%clk 0:02:17]} 36. Kf1 {[%clk 0:01:17]}  h5 {[%clk 0:02:16]} 37. Kg2 {[%clk 0:01:13]}  f5 {[%clk 0:02:14]} 38. gxf5+ {[%clk 0:00:57]}  Kxf5 {[%clk 0:02:13]} 39. Kf3 {[%clk 0:00:57]}  e5 {[%clk 0:01:46]} 40. dxe5 {[%clk 0:00:53]}  Kxe5 {[%clk 0:01:47]} 41. Rg1 {[%clk 0:00:45]}  Kf5 {[%clk 0:01:47]} 42. Rd1 {[%clk 0:00:45]}  Ke6 {[%clk 0:01:40]} 43. Rd4 {[%clk 0:00:43]}  Rc2 {[%clk 0:01:37]} 44. h4 {[%clk 0:00:37]}  Rc4 {[%clk 0:01:32]} 45. hxg5 {[%clk 0:00:18]}  Rxd4 {[%clk 0:01:32]} 46. exd4 {[%clk 0:00:19]}  Kf5 {[%clk 0:01:32]} 47. g6 {[%clk 0:00:15]}  Kxg6 {[%clk 0:01:32]} 48. Kf4 {[%clk 0:00:15]}  Kf6 {[%clk 0:01:32]} 49. f3 {[%clk 0:00:15]}  Kg6 {[%clk 0:01:30]} 50. Ke5 {[%clk 0:00:14]}  h4 {[%clk 0:01:29]} 51. Kxd5 {[%clk 0:00:05]}  h3 {[%clk 0:01:28]} 52. Kc6 {[%clk 0:00:05]}  h2 {[%clk 0:01:28]} 53. Kb7 {[%clk 0:00:06]}  h1=Q {[%clk 0:01:29]} 54. Kxa7 {[%clk 0:00:07]}  Qxf3 {[%clk 0:01:28]} 55. Kxb6 {[%clk 0:00:07]}  Qd5 {[%clk 0:01:26]} 56. a5 {[%clk 0:00:07]}  Qxd4+ {[%clk 0:01:27]} 57. Kb7 {[%clk 0:00:07]}  Qd7+ {[%clk 0:01:27]} 58. Kb6 {[%clk 0:00:07]}  Qd8+ {[%clk 0:01:27]} 59. Ka6 {[%clk 0:00:06]}  Qa8+ {[%clk 0:01:27]} 60. Kb6 {[%clk 0:00:06]}  Kf6 {[%clk 0:01:25]} 61. a6 {[%clk 0:00:07]}  Ke6 {[%clk 0:01:26]} 62. Ka5 {[%clk 0:00:07]}  Kd6 {[%clk 0:01:24]} 63. b6 {[%clk 0:00:08]}  Kc5 {[%clk 0:01:22]} 64. b7 {[%clk 0:00:09]}  Qd8+ {[%clk 0:01:22]} 65. Ka4 {[%clk 0:00:04]}  Qb6 {[%clk 0:01:22]} 0-1


[Site "https://www.chess.com"]

[Event "Titled Tuesday Blitz November 07 Early 2023"]
[White "Ziatdinov, Raset"]
[Black "Degenbaev, Aziz"]
[WhiteFideId "2015323"]
[BlackFideId "13802640"]
[WhiteElo "2514"]
[BlackElo "2666"]
[Result "1-0"]
[Round "6"]
[TimeControl "180+1"]
[Date "2023.11.07"]
[WhiteClock "0:01:53"]
[BlackClock "0:01:31"]
[Board "86"]

1. e4 {[%clk 0:03:00]}  e6 {[%clk 0:02:56]} 2. d4 {[%clk 0:02:59]}  d5 {[%clk 0:02:55]} 3. Nc3 {[%clk 0:03:00]}  Nc6 {[%clk 0:02:56]} 4. Nf3 {[%clk 0:02:58]}  Nf6 {[%clk 0:02:56]} 5. Bg5 {[%clk 0:02:54]}  Be7 {[%clk 0:02:54]} 6. Bxf6 {[%clk 0:02:54]}  Bxf6 {[%clk 0:02:54]} 7. e5 {[%clk 0:02:52]}  Be7 {[%clk 0:02:54]} 8. Bd3 {[%clk 0:02:51]}  Nb4 {[%clk 0:02:54]} 9. O-O {[%clk 0:02:46]}  Nxd3 {[%clk 0:02:54]} 10. Qxd3 {[%clk 0:02:44]}  O-O {[%clk 0:02:55]} 11. Ne2 {[%clk 0:02:43]}  b6 {[%clk 0:02:49]} 12. Nf4 {[%clk 0:02:42]}  a5 {[%clk 0:02:49]} 13. Rfe1 {[%clk 0:02:38]}  c5 {[%clk 0:02:46]} 14. Nh5 {[%clk 0:02:31]}  Ba6 {[%clk 0:02:41]} 15. Qe3 {[%clk 0:02:29]}  cxd4 {[%clk 0:02:37]} 16. Nxd4 {[%clk 0:02:26]}  Bg5 {[%clk 0:02:37]} 17. Qg3 {[%clk 0:02:22]}  Bh6 {[%clk 0:02:28]} 18. h4 {[%clk 0:02:19]}  Rc8 {[%clk 0:02:26]} 19. Re3 {[%clk 0:02:17]}  g6 {[%clk 0:02:19]} 20. Nf6+ {[%clk 0:02:12]}  Kh8 {[%clk 0:02:19]} 21. h5 {[%clk 0:02:10]}  g5 {[%clk 0:02:01]} 22. Ng4 {[%clk 0:02:04]}  Kg7 {[%clk 0:01:44]} 23. Rf3 {[%clk 0:02:04]}  Rc4 {[%clk 0:01:34]} 24. c3 {[%clk 0:01:54]}  Bc8 {[%clk 0:01:31]} 25. Rf6 {[%clk 0:01:53]} 1-0


[Site "https://www.chess.com"]

[Event "Titled Tuesday Blitz November 07 Early 2023"]
[White "Santos Flores, Alberto"]
[Black "Melian, Juan Sebastian"]
[WhiteFideId "3601234"]
[BlackFideId "3706575"]
[WhiteElo "2508"]
[BlackElo "2655"]
[Result "0-1"]
[Round "6"]
[TimeControl "180+1"]
[Date "2023.11.07"]
[WhiteClock "0:00:51"]
[BlackClock "0:00:13"]
[Board "88"]

1. e4 {[%clk 0:02:59]}  c5 {[%clk 0:02:51]} 2. Nf3 {[%clk 0:02:59]}  e6 {[%clk 0:02:51]} 3. g3 {[%clk 0:02:59]}  Nc6 {[%clk 0:02:50]} 4. Bg2 {[%clk 0:02:59]}  Nf6 {[%clk 0:02:50]} 5. Qe2 {[%clk 0:02:59]}  e5 {[%clk 0:02:50]} 6. c3 {[%clk 0:02:58]}  Be7 {[%clk 0:02:42]} 7. O-O {[%clk 0:02:58]}  O-O {[%clk 0:02:41]} 8. Rd1 {[%clk 0:02:58]}  d5 {[%clk 0:02:40]} 9. exd5 {[%clk 0:02:59]}  Qxd5 {[%clk 0:02:40]} 10. d3 {[%clk 0:03:00]}  Re8 {[%clk 0:02:38]} 11. Na3 {[%clk 0:02:59]}  Qd8 {[%clk 0:02:30]} 12. Nc4 {[%clk 0:02:57]}  Bf8 {[%clk 0:02:29]} 13. a4 {[%clk 0:02:38]}  Qc7 {[%clk 0:02:23]} 14. Bg5 {[%clk 0:02:34]}  Nd7 {[%clk 0:02:15]} 15. h4 {[%clk 0:02:24]}  h6 {[%clk 0:02:15]} 16. Be3 {[%clk 0:02:22]}  Nf6 {[%clk 0:02:14]} 17. Nfd2 {[%clk 0:02:22]}  Bg4 {[%clk 0:02:14]} 18. Bf3 {[%clk 0:02:19]}  Bxf3 {[%clk 0:02:14]} 19. Qxf3 {[%clk 0:02:20]}  Rad8 {[%clk 0:02:14]} 20. Bxh6 {[%clk 0:02:09]}  Qd7 {[%clk 0:01:50]} 21. Bg5 {[%clk 0:01:56]}  Qxd3 {[%clk 0:01:24]} 22. Qxd3 {[%clk 0:01:52]}  Rxd3 {[%clk 0:01:24]} 23. Bxf6 {[%clk 0:01:52]}  gxf6 {[%clk 0:01:25]} 24. Ne4 {[%clk 0:01:53]}  Rxd1+ {[%clk 0:00:39]} 25. Rxd1 {[%clk 0:01:53]}  Kg7 {[%clk 0:00:40]} 26. Rd7 {[%clk 0:01:49]}  Re7 {[%clk 0:00:39]} 27. Nxc5 {[%clk 0:01:44]}  b6 {[%clk 0:00:33]} 28. Rxe7 {[%clk 0:01:42]}  Bxe7 {[%clk 0:00:34]} 29. Nd3 {[%clk 0:01:36]}  Kg6 {[%clk 0:00:31]} 30. Kg2 {[%clk 0:01:34]}  Kf5 {[%clk 0:00:30]} 31. f3 {[%clk 0:01:30]}  Ke6 {[%clk 0:00:27]} 32. h5 {[%clk 0:01:25]}  Bf8 {[%clk 0:00:22]} 33. g4 {[%clk 0:01:17]}  f5 {[%clk 0:00:21]} 34. Ne3 {[%clk 0:01:15]}  fxg4 {[%clk 0:00:19]} 35. fxg4 {[%clk 0:01:15]}  Ne7 {[%clk 0:00:14]} 36. Kf3 {[%clk 0:01:12]}  Bh6 {[%clk 0:00:14]} 37. Nf2 {[%clk 0:01:04]}  Bxe3 {[%clk 0:00:06]} 38. Kxe3 {[%clk 0:01:05]}  f5 {[%clk 0:00:07]} 39. g5 {[%clk 0:01:02]}  Nd5+ {[%clk 0:00:06]} 40. Ke2 {[%clk 0:00:59]}  Nf4+ {[%clk 0:00:03]} 41. Kf3 {[%clk 0:00:58]}  Nxh5 {[%clk 0:00:04]} 42. c4 {[%clk 0:00:57]}  e4+ {[%clk 0:00:03]} 43. Nxe4 {[%clk 0:00:54]}  fxe4+ {[%clk 0:00:04]} 44. Kxe4 {[%clk 0:00:54]}  Ng7 {[%clk 0:00:04]} 45. b4 {[%clk 0:00:53]}  Kd6 {[%clk 0:00:04]} 46. Kd4 {[%clk 0:00:49]}  Ne6+ {[%clk 0:00:03]} 47. Kc3 {[%clk 0:00:48]}  Nxg5 {[%clk 0:00:04]} 48. a5 {[%clk 0:00:48]}  bxa5 {[%clk 0:00:04]} 49. bxa5 {[%clk 0:00:48]}  Kc5 {[%clk 0:00:05]} 50. Kb3 {[%clk 0:00:48]}  Ne4 {[%clk 0:00:05]} 51. Ka4 {[%clk 0:00:48]}  Nd6 {[%clk 0:00:06]} 52. a6 {[%clk 0:00:48]}  Nxc4 {[%clk 0:00:06]} 53. Kb3 {[%clk 0:00:48]}  Kb5 {[%clk 0:00:07]} 54. Kc3 {[%clk 0:00:48]}  Nb6 {[%clk 0:00:08]} 55. Kb3 {[%clk 0:00:48]}  Nd5 {[%clk 0:00:07]} 56. Ka3 {[%clk 0:00:48]}  Kxa6 {[%clk 0:00:08]} 57. Ka4 {[%clk 0:00:49]}  Kb6 {[%clk 0:00:08]} 58. Kb3 {[%clk 0:00:49]}  Kb5 {[%clk 0:00:09]} 59. Ka3 {[%clk 0:00:50]}  a5 {[%clk 0:00:10]} 60. Kb3 {[%clk 0:00:50]}  a4+ {[%clk 0:00:11]} 61. Ka3 {[%clk 0:00:51]}  Nb6 {[%clk 0:00:10]} 62. Kb2 {[%clk 0:00:52]}  Kb4 {[%clk 0:00:11]} 63. Ka2 {[%clk 0:00:52]}  a3 {[%clk 0:00:11]} 64. Ka1 {[%clk 0:00:52]}  Kb3 {[%clk 0:00:12]} 65. Kb1 {[%clk 0:00:53]}  Nd5 {[%clk 0:00:12]} 66. Ka1 {[%clk 0:00:53]}  Nb4 {[%clk 0:00:12]} 67. Kb1 {[%clk 0:00:51]}  a2+ {[%clk 0:00:13]} 0-1


[Site "https://www.chess.com"]

[Event "Titled Tuesday Blitz November 07 Early 2023"]
[White "Skliarov, Viktor"]
[Black "Pinto, Daniel"]
[WhiteFideId "14106736"]
[BlackFideId "3303144"]
[WhiteElo "2655"]
[BlackElo "2489"]
[Result "1-0"]
[Round "6"]
[TimeControl "180+1"]
[Date "2023.11.07"]
[WhiteClock "0:00:07"]
[BlackClock "0:00:00"]
[Board "90"]

1. e4 {[%clk 0:03:00]}  e5 {[%clk 0:02:56]} 2. Nc3 {[%clk 0:03:00]}  Nc6 {[%clk 0:02:56]} 3. Bc4 {[%clk 0:03:00]}  Nf6 {[%clk 0:02:56]} 4. d3 {[%clk 0:03:01]}  Bb4 {[%clk 0:02:56]} 5. Bd2 {[%clk 0:03:01]}  Na5 {[%clk 0:02:41]} 6. Bb3 {[%clk 0:03:01]}  Nxb3 {[%clk 0:02:27]} 7. axb3 {[%clk 0:03:00]}  Be7 {[%clk 0:02:26]} 8. Nge2 {[%clk 0:02:51]}  O-O {[%clk 0:02:08]} 9. f4 {[%clk 0:02:45]}  exf4 {[%clk 0:02:08]} 10. Nxf4 {[%clk 0:02:44]}  d6 {[%clk 0:02:07]} 11. O-O {[%clk 0:02:44]}  c6 {[%clk 0:02:00]} 12. h3 {[%clk 0:02:36]}  Re8 {[%clk 0:01:48]} 13. Qf3 {[%clk 0:02:33]}  Be6 {[%clk 0:01:46]} 14. Be3 {[%clk 0:02:06]}  c5 {[%clk 0:01:34]} 15. Nxe6 {[%clk 0:02:01]}  fxe6 {[%clk 0:01:34]} 16. e5 {[%clk 0:02:00]}  dxe5 {[%clk 0:01:34]} 17. Qxb7 {[%clk 0:02:00]}  Qb6 {[%clk 0:01:16]} 18. Qf3 {[%clk 0:01:49]}  Rf8 {[%clk 0:01:15]} 19. Qe2 {[%clk 0:01:37]}  Nd5 {[%clk 0:01:10]} 20. Ne4 {[%clk 0:01:32]}  a5 {[%clk 0:00:58]} 21. Nd2 {[%clk 0:00:44]}  Rxf1+ {[%clk 0:00:57]} 22. Rxf1 {[%clk 0:00:41]}  a4 {[%clk 0:00:53]} 23. Nc4 {[%clk 0:00:39]}  Qc7 {[%clk 0:00:54]} 24. bxa4 {[%clk 0:00:31]}  Rxa4 {[%clk 0:00:32]} 25. Qh5 {[%clk 0:00:31]}  g6 {[%clk 0:00:21]} 26. Qf3 {[%clk 0:00:30]}  Bf6 {[%clk 0:00:14]} 27. Bg5 {[%clk 0:00:26]}  Bg7 {[%clk 0:00:12]} 28. b3 {[%clk 0:00:14]}  Ra8 {[%clk 0:00:12]} 29. Qe4 {[%clk 0:00:14]}  Rf8 {[%clk 0:00:03]} 30. Rxf8+ {[%clk 0:00:13]}  Kxf8 {[%clk 0:00:04]} 31. Bd2 {[%clk 0:00:13]}  Qf7 {[%clk 0:00:02]} 32. Ne3 {[%clk 0:00:13]}  Qf4 {[%clk 0:00:02]} 33. Nxd5 {[%clk 0:00:13]}  Qxe4 {[%clk 0:00:01]} 34. dxe4 {[%clk 0:00:14]}  exd5 {[%clk 0:00:02]} 35. exd5 {[%clk 0:00:14]}  Ke7 {[%clk 0:00:03]} 36. c4 {[%clk 0:00:14]}  e4 {[%clk 0:00:03]} 37. Kf2 {[%clk 0:00:14]}  Bd4+ {[%clk 0:00:03]} 38. Be3 {[%clk 0:00:14]}  Kd6 {[%clk 0:00:03]} 39. Ke2 {[%clk 0:00:12]}  Ke5 {[%clk 0:00:03]} 40. Bh6 {[%clk 0:00:11]}  Kd6 {[%clk 0:00:03]} 41. Bf8+ {[%clk 0:00:11]}  Ke5 {[%clk 0:00:04]} 42. Be7 {[%clk 0:00:11]}  Kf5 {[%clk 0:00:04]} 43. b4 {[%clk 0:00:10]}  cxb4 {[%clk 0:00:03]} 44. Bxb4 {[%clk 0:00:11]}  Ke5 {[%clk 0:00:04]} 45. Bf8 {[%clk 0:00:11]}  Kf5 {[%clk 0:00:03]} 46. c5 {[%clk 0:00:10]}  h5 {[%clk 0:00:03]} 47. c6 {[%clk 0:00:10]}  Be5 {[%clk 0:00:03]} 48. d6 {[%clk 0:00:10]}  Ke6 {[%clk 0:00:03]} 49. d7 {[%clk 0:00:09]}  Bc7 {[%clk 0:00:04]} 50. Bh6 {[%clk 0:00:07]}  Bd8 {[%clk 0:00:04]} 51. Bf4 {[%clk 0:00:07]}  g5 {[%clk 0:00:04]} 52. c7 {[%clk 0:00:07]}  Kxd7 {[%clk 0:00:00]} 53. cxd8=Q+ {[%clk 0:00:07]} 1-0


[Site "https://www.chess.com"]

[Event "Titled Tuesday Blitz November 07 Early 2023"]
[White "vishwa_vijeta"]
[Black "Dowgird, Filip"]
[BlackFideId "1121235"]
[WhiteElo "2483"]
[BlackElo "2654"]
[Result "0-1"]
[Round "6"]
[TimeControl "180+1"]
[Date "2023.11.07"]
[WhiteClock "0:00:00"]
[BlackClock "0:00:04"]
[Board "91"]

1. e4 {[%clk 0:02:52]}  d6 {[%clk 0:02:59]} 2. d4 {[%clk 0:02:47]}  Nf6 {[%clk 0:03:00]} 3. Nc3 {[%clk 0:02:39]}  c6 {[%clk 0:03:01]} 4. Be3 {[%clk 0:02:35]}  Qb6 {[%clk 0:02:55]} 5. a3 {[%clk 0:02:28]}  Ng4 {[%clk 0:02:47]} 6. Bg5 {[%clk 0:02:08]}  h6 {[%clk 0:02:47]} 7. Bh4 {[%clk 0:02:08]}  g5 {[%clk 0:02:47]} 8. Bg3 {[%clk 0:02:08]}  Bg7 {[%clk 0:02:47]} 9. Nf3 {[%clk 0:02:05]}  f5 {[%clk 0:02:22]} 10. exf5 {[%clk 0:01:56]}  Bxf5 {[%clk 0:02:23]} 11. Bd3 {[%clk 0:01:53]}  Bxd3 {[%clk 0:02:12]} 12. Qxd3 {[%clk 0:01:54]}  O-O {[%clk 0:01:38]} 13. h4 {[%clk 0:01:45]}  gxh4 {[%clk 0:01:28]} 14. Rxh4 {[%clk 0:01:42]}  Nf6 {[%clk 0:01:23]} 15. O-O-O {[%clk 0:01:40]}  Kf7 {[%clk 0:01:16]} 16. Bf4 {[%clk 0:01:31]}  Rh8 {[%clk 0:01:09]} 17. Rdh1 {[%clk 0:01:29]}  Nbd7 {[%clk 0:01:06]} 18. Bxh6 {[%clk 0:01:27]}  Bxh6+ {[%clk 0:01:04]} 19. Rxh6 {[%clk 0:01:26]}  Rxh6 {[%clk 0:01:04]} 20. Rxh6 {[%clk 0:01:26]}  Rg8 {[%clk 0:01:04]} 21. g3 {[%clk 0:00:56]}  Qa5 {[%clk 0:01:02]} 22. Ne4 {[%clk 0:00:48]}  Qd5 {[%clk 0:00:47]} 23. Nxf6 {[%clk 0:00:37]}  Nxf6 {[%clk 0:00:48]} 24. c4 {[%clk 0:00:35]}  Qe6 {[%clk 0:00:35]} 25. d5 {[%clk 0:00:35]}  cxd5 {[%clk 0:00:28]} 26. cxd5 {[%clk 0:00:33]}  Qg4 {[%clk 0:00:22]} 27. Rh4 {[%clk 0:00:33]}  Rc8+ {[%clk 0:00:13]} 28. Kb1 {[%clk 0:00:30]}  Qg6 {[%clk 0:00:13]} 29. Qxg6+ {[%clk 0:00:27]}  Kxg6 {[%clk 0:00:14]} 30. Ra4 {[%clk 0:00:26]}  a6 {[%clk 0:00:14]} 31. Rb4 {[%clk 0:00:25]}  b5 {[%clk 0:00:14]} 32. Rd4 {[%clk 0:00:24]}  Rc5 {[%clk 0:00:14]} 33. Nh4+ {[%clk 0:00:20]}  Kf7 {[%clk 0:00:14]} 34. Ng2 {[%clk 0:00:16]}  Nxd5 {[%clk 0:00:12]} 35. g4 {[%clk 0:00:14]}  Nc7 {[%clk 0:00:10]} 36. f3 {[%clk 0:00:12]}  Ne6 {[%clk 0:00:10]} 37. Rd2 {[%clk 0:00:12]}  Rc4 {[%clk 0:00:09]} 38. Ne3 {[%clk 0:00:11]}  Rf4 {[%clk 0:00:09]} 39. Rh2 {[%clk 0:00:04]}  Rxf3 {[%clk 0:00:08]} 40. Nf5 {[%clk 0:00:04]}  Ng5 {[%clk 0:00:06]} 41. Re2 {[%clk 0:00:04]}  Ne6 {[%clk 0:00:02]} 42. Ka2 {[%clk 0:00:04]}  Rf4 {[%clk 0:00:01]} 43. Rh2 {[%clk 0:00:02]}  Kf6 {[%clk 0:00:01]} 44. Rh6+ {[%clk 0:00:01]}  Ke5 {[%clk 0:00:02]} 45. Nxe7 {[%clk 0:00:01]}  Rxg4 {[%clk 0:00:01]} 46. Nc6+ {[%clk 0:00:01]}  Kd5 {[%clk 0:00:02]} 47. Ne7+ {[%clk 0:00:01]}  Ke5 {[%clk 0:00:03]} 48. Nc6+ {[%clk 0:00:02]}  Kd5 {[%clk 0:00:03]} 49. Nb4+ {[%clk 0:00:02]}  Kc5 {[%clk 0:00:03]} 50. Rxe6 {[%clk 0:00:01]}  a5 {[%clk 0:00:03]} 51. Nd3+ {[%clk 0:00:00]}  Kd5 {[%clk 0:00:04]} 0-1


[Site "https://www.chess.com"]

[Event "Titled Tuesday Blitz November 07 Early 2023"]
[White "Kuzhylnyi, Oleksandr"]
[Black "ExchangeAB"]
[WhiteFideId "34110500"]
[WhiteElo "2640"]
[BlackElo "2442"]
[Result "1/2-1/2"]
[Round "6"]
[TimeControl "180+1"]
[Date "2023.11.07"]
[WhiteClock "0:00:04"]
[BlackClock "0:00:28"]
[Board "94"]

1. b3 {[%clk 0:02:57]}  e5 {[%clk 0:02:59]} 2. Bb2 {[%clk 0:02:56]}  Nc6 {[%clk 0:02:59]} 3. e3 {[%clk 0:02:53]}  a6 {[%clk 0:03:00]} 4. c4 {[%clk 0:02:52]}  Nf6 {[%clk 0:02:59]} 5. Nf3 {[%clk 0:02:50]}  d6 {[%clk 0:02:58]} 6. d4 {[%clk 0:02:50]}  e4 {[%clk 0:02:57]} 7. Nfd2 {[%clk 0:02:50]}  Bf5 {[%clk 0:02:57]} 8. Nc3 {[%clk 0:02:42]}  g6 {[%clk 0:02:56]} 9. Be2 {[%clk 0:02:18]}  Bg7 {[%clk 0:02:56]} 10. g4 {[%clk 0:02:17]}  Bd7 {[%clk 0:02:55]} 11. g5 {[%clk 0:02:13]}  Ng8 {[%clk 0:02:51]} 12. Ndxe4 {[%clk 0:02:13]}  Qe7 {[%clk 0:02:47]} 13. Nd5 {[%clk 0:01:59]}  Qd8 {[%clk 0:02:17]} 14. Bf3 {[%clk 0:01:47]}  h6 {[%clk 0:02:08]} 15. h4 {[%clk 0:01:46]}  hxg5 {[%clk 0:02:06]} 16. hxg5 {[%clk 0:01:47]}  Rxh1+ {[%clk 0:02:06]} 17. Bxh1 {[%clk 0:01:48]}  Nce7 {[%clk 0:02:05]} 18. Ndf6+ {[%clk 0:01:37]}  Bxf6 {[%clk 0:02:03]} 19. gxf6 {[%clk 0:01:32]}  Nc6 {[%clk 0:02:00]} 20. d5 {[%clk 0:01:29]}  Ne5 {[%clk 0:01:59]} 21. Bxe5 {[%clk 0:01:21]}  dxe5 {[%clk 0:02:00]} 22. Qf3 {[%clk 0:01:21]}  Bf5 {[%clk 0:01:59]} 23. Qg3 {[%clk 0:01:10]}  Bxe4 {[%clk 0:01:44]} 24. Qxe5+ {[%clk 0:01:09]}  Kf8 {[%clk 0:01:45]} 25. Bxe4 {[%clk 0:01:10]}  Nxf6 {[%clk 0:01:42]} 26. Ke2 {[%clk 0:01:09]}  Nxe4 {[%clk 0:01:38]} 27. Qxe4 {[%clk 0:01:07]}  Qf6 {[%clk 0:01:38]} 28. Qd4 {[%clk 0:01:02]}  Qxd4 {[%clk 0:01:34]} 29. exd4 {[%clk 0:01:03]}  Ke7 {[%clk 0:01:33]} 30. Rh1 {[%clk 0:01:03]}  Kf6 {[%clk 0:01:32]} 31. Kd3 {[%clk 0:01:00]}  Re8 {[%clk 0:01:31]} 32. b4 {[%clk 0:00:59]}  b5 {[%clk 0:01:29]} 33. c5 {[%clk 0:00:50]}  Rd8 {[%clk 0:01:24]} 34. d6 {[%clk 0:00:20]}  cxd6 {[%clk 0:01:24]} 35. c6 {[%clk 0:00:21]}  d5 {[%clk 0:01:25]} 36. Rc1 {[%clk 0:00:19]}  Rc8 {[%clk 0:01:25]} 37. c7 {[%clk 0:00:19]}  Ke7 {[%clk 0:01:26]} 38. Rc6 {[%clk 0:00:20]}  Kd7 {[%clk 0:01:25]} 39. Rxa6 {[%clk 0:00:20]}  Rxc7 {[%clk 0:01:23]} 40. Rb6 {[%clk 0:00:21]}  Ra7 {[%clk 0:01:14]} 41. Ke3 {[%clk 0:00:20]}  Ra3+ {[%clk 0:01:12]} 42. Kf4 {[%clk 0:00:20]}  Rxa2 {[%clk 0:01:13]} 43. f3 {[%clk 0:00:18]}  Rd2 {[%clk 0:01:04]} 44. Ke3 {[%clk 0:00:16]}  Rc2 {[%clk 0:01:03]} 45. Rxb5 {[%clk 0:00:16]}  Ke6 {[%clk 0:01:03]} 46. Rb6+ {[%clk 0:00:15]}  Kf5 {[%clk 0:01:02]} 47. Rd6 {[%clk 0:00:15]}  Rc3+ {[%clk 0:01:02]} 48. Kf2 {[%clk 0:00:15]}  Rc4 {[%clk 0:00:58]} 49. Rxd5+ {[%clk 0:00:15]}  Kf4 {[%clk 0:00:59]} 50. Rc5 {[%clk 0:00:09]}  Rxb4 {[%clk 0:00:56]} 51. Rc2 {[%clk 0:00:04]}  Rxd4 {[%clk 0:00:54]} 52. Ra2 {[%clk 0:00:04]}  Rb4 {[%clk 0:00:51]} 53. Rc2 {[%clk 0:00:05]}  f5 {[%clk 0:00:48]} 54. Ra2 {[%clk 0:00:05]}  Kg5 {[%clk 0:00:48]} 55. Kg3 {[%clk 0:00:05]}  f4+ {[%clk 0:00:48]} 56. Kh3 {[%clk 0:00:04]}  Kh5 {[%clk 0:00:48]} 57. Ra5+ {[%clk 0:00:04]}  g5 {[%clk 0:00:46]} 58. Ra8 {[%clk 0:00:04]}  Rb1 {[%clk 0:00:39]} 59. Rh8+ {[%clk 0:00:05]}  Kg6 {[%clk 0:00:39]} 60. Rg8+ {[%clk 0:00:05]}  Kh6 {[%clk 0:00:40]} 61. Kg4 {[%clk 0:00:03]}  Rg1+ {[%clk 0:00:39]} 62. Kf5 {[%clk 0:00:04]}  Rg3 {[%clk 0:00:39]} 63. Rg6+ {[%clk 0:00:04]}  Kh5 {[%clk 0:00:30]} 64. Rg8 {[%clk 0:00:04]}  Kh6 {[%clk 0:00:30]} 65. Rg6+ {[%clk 0:00:04]}  Kh5 {[%clk 0:00:28]} 66. Rg8 {[%clk 0:00:04]}  Kh6 {[%clk 0:00:28]} 1/2-1/2


[Site "https://www.chess.com"]

[Event "Titled Tuesday Blitz November 07 Early 2023"]
[White "Asavasaetakul, Chawit"]
[Black "LiadCuba"]
[WhiteFideId "6204856"]
[WhiteElo "2640"]
[BlackElo "2424"]
[Result "1-0"]
[Round "6"]
[TimeControl "180+1"]
[Date "2023.11.07"]
[WhiteClock "0:01:22"]
[BlackClock "0:00:00"]
[Board "95"]

1. e4 {[%clk 0:03:00]}  c5 {[%clk 0:02:59]} 2. c3 {[%clk 0:02:58]}  d6 {[%clk 0:02:57]} 3. d4 {[%clk 0:02:58]}  cxd4 {[%clk 0:02:58]} 4. cxd4 {[%clk 0:02:59]}  Nf6 {[%clk 0:02:58]} 5. Nc3 {[%clk 0:03:00]}  Nc6 {[%clk 0:02:58]} 6. Nf3 {[%clk 0:03:01]}  d5 {[%clk 0:02:59]} 7. exd5 {[%clk 0:02:58]}  Nxd5 {[%clk 0:03:00]} 8. Bc4 {[%clk 0:02:58]}  Nxc3 {[%clk 0:02:36]} 9. bxc3 {[%clk 0:02:59]}  e6 {[%clk 0:02:35]} 10. O-O {[%clk 0:02:58]}  Be7 {[%clk 0:02:35]} 11. Qe2 {[%clk 0:02:59]}  O-O {[%clk 0:02:34]} 12. Bf4 {[%clk 0:02:56]}  b6 {[%clk 0:02:32]} 13. Rfe1 {[%clk 0:02:55]}  Bb7 {[%clk 0:02:28]} 14. Rad1 {[%clk 0:02:49]}  Bf6 {[%clk 0:02:19]} 15. Ne5 {[%clk 0:02:42]}  Bxe5 {[%clk 0:02:08]} 16. dxe5 {[%clk 0:02:42]}  Qe7 {[%clk 0:02:07]} 17. Qg4 {[%clk 0:02:36]}  Rfc8 {[%clk 0:01:46]} 18. Bg5 {[%clk 0:02:28]}  Qf8 {[%clk 0:01:39]} 19. Rd7 {[%clk 0:02:27]}  Na5 {[%clk 0:01:39]} 20. Bd3 {[%clk 0:02:13]}  Bc6 {[%clk 0:01:30]} 21. Be7 {[%clk 0:02:09]}  Qe8 {[%clk 0:01:24]} 22. Bf6 {[%clk 0:02:08]}  Qf8 {[%clk 0:01:24]} 23. Bxh7+ {[%clk 0:01:50]}  Kxh7 {[%clk 0:01:19]} 24. Qh4+ {[%clk 0:01:50]}  Kg8 {[%clk 0:01:16]} 25. Rd3 {[%clk 0:01:50]}  Bxg2 {[%clk 0:00:42]} 26. Kxg2 {[%clk 0:01:33]}  Rc4 {[%clk 0:00:39]} 27. Re4 {[%clk 0:01:29]}  Rxe4 {[%clk 0:00:34]} 28. Qxe4 {[%clk 0:01:30]}  Qc8 {[%clk 0:00:18]} 29. Qg4 {[%clk 0:01:22]}  Qb7+ {[%clk 0:00:06]} 30. Rf3 {[%clk 0:01:22]}  g6 {[%clk 0:00:00]} 31. Qh4 {[%clk 0:01:22]} 1-0


[Site "https://www.chess.com"]